fUSD/lending_fUSD_20260510
["ID","MTS","AMOUNT","RATE_DAILY","PERIOD"]
[421975631,1778396654000,-345.87,0.0004,120]
[421975641,1778396654000,-151.66,0.0004015,120]
[421975656,1778396654000,-151.66,0.0004045,120]
[421975640,1778396654000,-908.624,0.00040136,30]
[421975657,1778396654000,-259.62,0.000405,120]
[421975654,1778396654000,-864.36,0.000404,90]
[421975655,1778396654000,-160.0,0.000404,65]
[421975653,1778396654000,-575.86,0.000404,90]
[421975650,1778396654000,-31957.48,0.00040384,60]
[421975652,1778396654000,-36360.5,0.00040384,60]
[421975651,1778396654000,-50000.0,0.00040384,60]
[421975639,1778396654000,-2100.0,0.00040107,30]
[421975648,1778396654000,-500.0,0.00040355,60]
[421975647,1778396654000,-1300.0,0.00040355,60]
[421975645,1778396654000,-151.66,0.0004035,120]
[421975646,1778396654000,-600.0,0.00040355,60]
[421975642,1778396654000,-151.66,0.0004025,120]
[421975644,1778396654000,-2015.23,0.0004031,120]
[421975643,1778396654000,-719.83,0.0004029,60]
[421975649,1778396654000,-50000.0,0.00040384,60]
[421975672,1778396655000,-151.66,0.0004085,120]
[421975671,1778396655000,-10588.89955674,0.000408,120]
[421975670,1778396655000,-150.0,0.00040778,60]
[421975669,1778396655000,-151.66,0.0004075,120]
[421975668,1778396655000,-4876.67,0.0004075,120]
[421975667,1778396655000,-154.4,0.0004075,120]
[421975665,1778396655000,-153.92,0.0004069,120]
[421975662,1778396655000,-194.0,0.000406,120]
[421975666,1778396655000,-161.2,0.000407,120]
[421975664,1778396655000,-151.66,0.0004065,120]
[421975661,1778396655000,-161.52,0.0004059,120]
[421975660,1778396655000,-2804.9908,0.00040571,30]
[421975658,1778396655000,-1519.7,0.000405,120]
[421975659,1778396655000,-151.66,0.0004055,120]
[421975676,1778396655000,-1005.40144569,0.00040967,120]
[421975663,1778396655000,-1667.88,0.000406,90]
[421975673,1778396655000,-155.16,0.00040891,120]
[421975675,1778396655000,-151.66644828,0.0004095,120]
[421975674,1778396655000,-186.87,0.000409,30]
[421975692,1778396655000,-500.0,0.00041095,120]
[421975690,1778396655000,-153.92,0.0004109,120]
[421975688,1778396655000,-1119.45747071,0.00041,30]
[421975689,1778396655000,-1143.5,0.00041041,120]
[421975686,1778396655000,-3197.54717978,0.00041,120]
[421975687,1778396655000,-538.0,0.00041,30]
[421975684,1778396655000,-6629.5216899,0.00041,120]
[421975691,1778396655000,-500.0,0.00041095,120]
[421975683,1778396655000,-3000.0,0.00041,120]
[421975682,1778396655000,-1250.0,0.00041,120]
[421975680,1778396655000,-245.52508766,0.00041,30]
[421975681,1778396655000,-179.95,0.00041,120]
[421975677,1778396655000,-710.36812025,0.00041,30]
[421975679,1778396655000,-354.17176249,0.00041,60]
[421975678,1778396655000,-1156.57058307,0.00041,90]
[421975685,1778396655000,-220.000001,0.00041,120]
[421975705,1778396656000,-151.0,0.00041096,120]
[421975707,1778396656000,-151.0,0.00041096,120]
[421975706,1778396656000,-151.0,0.00041096,120]
[421975703,1778396656000,-151.0,0.00041096,120]
[421975704,1778396656000,-295.550875,0.00041096,120]
[421975702,1778396656000,-210.744982,0.00041096,120]
[421975701,1778396656000,-160.598028,0.00041096,120]
[421975695,1778396656000,-534.92641173,0.00041095,120]
[421975698,1778396656000,-1561.0,0.00041096,120]
[421975699,1778396656000,-5648.0,0.00041096,120]
[421975697,1778396656000,-171.0,0.00041096,30]
[421975696,1778396656000,-156.51144695,0.00041095,30]
[421975694,1778396656000,-500.0,0.00041095,120]
[421975708,1778396656000,-151.0,0.00041096,120]
[421975700,1778396656000,-173.347588,0.00041096,120]
[421975709,1778396656000,-151.0,0.00041096,120]
[421975693,1778396656000,-500.0,0.00041095,120]
[421975710,1778396656000,-151.0,0.00041096,120]
[421975726,1778396656000,-505.539602,0.00041096,120]
[421975725,1778396656000,-505.539602,0.00041096,120]
[421975724,1778396656000,-505.539602,0.00041096,120]
[421975722,1778396656000,-151.0,0.00041096,120]
[421975723,1778396656000,-174.120305,0.00041096,120]
[421975720,1778396656000,-151.0,0.00041096,120]
[421975719,1778396656000,-151.0,0.00041096,120]
[421975711,1778396656000,-151.0,0.00041096,120]
[421975716,1778396656000,-151.0,0.00041096,120]
[421975718,1778396656000,-151.0,0.00041096,120]
[421975717,1778396656000,-151.0,0.00041096,120]
[421975712,1778396656000,-151.0,0.00041096,120]
[421975714,1778396656000,-151.0,0.00041096,120]
[421975715,1778396656000,-151.0,0.00041096,120]
[421975713,1778396656000,-151.0,0.00041096,120]
[421975721,1778396656000,-151.0,0.00041096,120]
[421975739,1778396657000,-505.539602,0.00041096,120]
[421975740,1778396657000,-505.539602,0.00041096,120]
[421975738,1778396657000,-505.539602,0.00041096,120]
[421975736,1778396657000,-505.539602,0.00041096,120]
[421975737,1778396657000,-505.539602,0.00041096,120]
[421975733,1778396657000,-505.539602,0.00041096,120]
[421975735,1778396657000,-505.539602,0.00041096,120]
[421975729,1778396657000,-505.539602,0.00041096,120]
[421975732,1778396657000,-505.539602,0.00041096,120]
[421975731,1778396657000,-505.539602,0.00041096,120]
[421975730,1778396657000,-505.539602,0.00041096,120]
[421975727,1778396657000,-505.539602,0.00041096,120]
[421975728,1778396657000,-505.539602,0.00041096,120]
[421975741,1778396657000,-505.539602,0.00041096,120]
[421975734,1778396657000,-505.539602,0.00041096,120]
[421975745,1778396657000,-3308.252344,0.00041096,120]
[421975744,1778396657000,-3308.252344,0.00041096,120]
[421975743,1778396657000,-505.539608,0.00041096,120]
[421975759,1778396657000,-3308.252344,0.00041096,120]
[421975757,1778396657000,-3308.252344,0.00041096,120]
[421975755,1778396657000,-3308.252344,0.00041096,120]
[421975758,1778396657000,-3308.252344,0.00041096,120]
[421975754,1778396657000,-3308.252344,0.00041096,120]
[421975753,1778396657000,-3308.252344,0.00041096,120]
[421975751,1778396657000,-3308.252344,0.00041096,120]
[421975756,1778396657000,-3308.252344,0.00041096,120]
[421975750,1778396657000,-3308.252344,0.00041096,120]
[421975748,1778396657000,-3308.252344,0.00041096,120]
[421975749,1778396657000,-3308.252344,0.00041096,120]
[421975746,1778396657000,-3308.252344,0.00041096,120]
[421975747,1778396657000,-3308.252344,0.00041096,120]
[421975742,1778396657000,-505.539602,0.00041096,120]
[421975752,1778396657000,-3308.252344,0.00041096,120]
[421975768,1778396658000,-800.0,0.00041096,30]
[421975773,1778396658000,-800.0,0.00041096,30]
[421975772,1778396658000,-800.0,0.00041096,30]
[421975769,1778396658000,-800.0,0.00041096,30]
[421975771,1778396658000,-800.0,0.00041096,30]
[421975770,1778396658000,-800.0,0.00041096,30]
[421975766,1778396658000,-800.0,0.00041096,30]
[421975761,1778396658000,-3308.252344,0.00041096,120]
[421975765,1778396658000,-800.0,0.00041096,30]
[421975762,1778396658000,-3308.252344,0.00041096,120]
[421975764,1778396658000,-800.0,0.00041096,30]
[421975763,1778396658000,-3308.252341,0.00041096,120]
[421975760,1778396658000,-3308.252344,0.00041096,120]
[421975775,1778396658000,-800.0,0.00041096,30]
[421975767,1778396658000,-800.0,0.00041096,30]
[421975774,1778396658000,-800.0,0.00041096,30]
[421975792,1778396658000,-151.0,0.00041096,120]
[421975776,1778396658000,-800.0,0.00041096,30]
[421975777,1778396658000,-176.0,0.00041096,30]
[421975793,1778396658000,-151.0,0.00041096,120]
[421975790,1778396658000,-151.0,0.00041096,120]
[421975791,1778396658000,-151.0,0.00041096,120]
[421975788,1778396658000,-151.0,0.00041096,120]
[421975786,1778396658000,-151.0,0.00041096,120]
[421975787,1778396658000,-151.0,0.00041096,120]
[421975789,1778396658000,-151.0,0.00041096,120]
[421975783,1778396658000,-151.0,0.00041096,120]
[421975784,1778396658000,-151.0,0.00041096,120]
[421975782,1778396658000,-151.0,0.00041096,120]
[421975781,1778396658000,-171.75671,0.00041096,120]
[421975780,1778396658000,-151.0,0.00041096,120]
[421975779,1778396658000,-151.0,0.00041096,120]
[421975778,1778396658000,-151.0,0.00041096,120]
[421975785,1778396658000,-151.0,0.00041096,120]
[421975805,1778396659000,-1254.2564,0.00041096,30]
[421975808,1778396659000,-1254.2564,0.00041096,30]
[421975809,1778396659000,-1254.2564,0.00041096,30]
[421975807,1778396659000,-193.562417,0.00041096,120]
[421975806,1778396659000,-1254.2564,0.00041096,30]
[421975804,1778396659000,-165.792621,0.00041096,120]
[421975803,1778396659000,-151.0,0.00041096,120]
[421975794,1778396659000,-151.0,0.00041096,120]
[421975810,1778396659000,-1254.2564,0.00041096,30]
[421975800,1778396659000,-162.507967,0.00041096,120]
[421975797,1778396659000,-151.0,0.00041096,120]
[421975799,1778396659000,-151.0,0.00041096,120]
[421975798,1778396659000,-151.0,0.00041096,120]
[421975796,1778396659000,-151.0,0.00041096,120]
[421975795,1778396659000,-151.0,0.00041096,120]
[421975801,1778396659000,-151.0,0.00041096,120]
[421975811,1778396659000,-1254.2564,0.00041096,30]
[421975802,1778396659000,-151.0,0.00041096,120]
[421975813,1778396659000,-1254.2564,0.00041096,30]
[421975829,1778396659000,-151.0,0.00041096,120]
[421975828,1778396659000,-151.0,0.00041096,120]
[421975827,1778396659000,-151.0,0.00041096,120]
[421975826,1778396659000,-151.0,0.00041096,120]
[421975825,1778396659000,-1254.256401,0.00041096,30]
[421975824,1778396659000,-1254.2564,0.00041096,30]
[421975822,1778396659000,-1254.2564,0.00041096,30]
[421975823,1778396659000,-1254.2564,0.00041096,30]
[421975812,1778396659000,-1254.2564,0.00041096,30]
[421975819,1778396659000,-1254.2564,0.00041096,30]
[421975820,1778396659000,-1254.2564,0.00041096,30]
[421975817,1778396659000,-1254.2564,0.00041096,30]
[421975815,1778396659000,-1254.2564,0.00041096,30]
[421975818,1778396659000,-1254.2564,0.00041096,30]
[421975816,1778396659000,-1254.2564,0.00041096,30]
[421975814,1778396659000,-1254.2564,0.00041096,30]
[421975821,1778396659000,-1254.2564,0.00041096,30]
[421975845,1778396660000,-895.111196,0.00041096,120]
[421975844,1778396660000,-895.111196,0.00041096,120]
[421975842,1778396660000,-895.111196,0.00041096,120]
[421975840,1778396660000,-198.43993,0.00041096,120]
[421975843,1778396660000,-895.111196,0.00041096,120]
[421975841,1778396660000,-895.111196,0.00041096,120]
[421975839,1778396660000,-151.0,0.00041096,120]
[421975834,1778396660000,-212.261572,0.00041096,120]
[421975838,1778396660000,-151.0,0.00041096,120]
[421975836,1778396660000,-151.0,0.00041096,120]
[421975833,1778396660000,-151.0,0.00041096,120]
[421975835,1778396660000,-151.0,0.00041096,120]
[421975830,1778396660000,-151.0,0.00041096,120]
[421975832,1778396660000,-151.0,0.00041096,120]
[421975846,1778396660000,-895.111196,0.00041096,120]
[421975837,1778396660000,-151.0,0.00041096,120]
[421975848,1778396660000,-895.111196,0.00041096,120]
[421975831,1778396660000,-151.0,0.00041096,120]
[421975849,1778396660000,-895.111196,0.00041096,120]
[421975866,1778396660000,-151.0,0.00041096,120]
[421975865,1778396660000,-151.0,0.00041096,120]
[421975864,1778396660000,-151.0,0.00041096,120]
[421975862,1778396660000,-180.032254,0.00041096,120]
[421975861,1778396660000,-895.111203,0.00041096,120]
[421975859,1778396660000,-895.111196,0.00041096,120]
[421975860,1778396660000,-895.111196,0.00041096,120]
[421975858,1778396660000,-895.111196,0.00041096,120]
[421975863,1778396660000,-151.0,0.00041096,120]
[421975855,1778396660000,-895.111196,0.00041096,120]
[421975857,1778396660000,-895.111196,0.00041096,120]
[421975850,1778396660000,-181.601437,0.00041096,120]
[421975852,1778396660000,-895.111196,0.00041096,120]
[421975847,1778396660000,-895.111196,0.00041096,120]
[421975854,1778396660000,-895.111196,0.00041096,120]
[421975853,1778396660000,-895.111196,0.00041096,120]
[421975856,1778396660000,-895.111196,0.00041096,120]
[421975851,1778396660000,-895.111196,0.00041096,120]
[421975881,1778396661000,-201.1,0.00041096,120]
[421975877,1778396661000,-151.0,0.00041096,120]
[421975880,1778396661000,-201.1,0.00041096,120]
[421975879,1778396661000,-204.676044,0.00041096,120]
[421975878,1778396661000,-151.0,0.00041096,120]
[421975876,1778396661000,-151.0,0.00041096,120]
[421975874,1778396661000,-245.0,0.00041096,120]
[421975872,1778396661000,-151.0,0.00041096,120]
[421975873,1778396661000,-151.0,0.00041096,120]
[421975871,1778396661000,-151.0,0.00041096,120]
[421975869,1778396661000,-151.0,0.00041096,120]
[421975868,1778396661000,-250.700125,0.00041096,120]
[421975867,1778396661000,-151.0,0.00041096,120]
[421975882,1778396661000,-219.46,0.00041096,120]
[421975875,1778396661000,-151.0,0.00041096,120]
[421975870,1778396661000,-151.0,0.00041096,120]
[421975884,1778396661000,-150.0,0.00041096,120]
[421975885,1778396661000,-150.0,0.00041096,120]
[421975883,1778396661000,-150.0,0.00041096,120]
[421975900,1778396661000,-363.60746394,0.000411,120]
[421975899,1778396661000,-363.60746394,0.000411,120]
[421975898,1778396661000,-363.60746394,0.000411,120]
[421975897,1778396661000,-363.60746394,0.000411,120]
[421975896,1778396661000,-363.60746394,0.000411,120]
[421975894,1778396661000,-363.60746394,0.000411,120]
[421975895,1778396661000,-363.60746394,0.000411,120]
[421975891,1778396661000,-363.60746394,0.000411,120]
[421975892,1778396661000,-363.60746394,0.000411,120]
[421975890,1778396661000,-363.60746394,0.000411,120]
[421975889,1778396661000,-363.60746394,0.000411,120]
[421975888,1778396661000,-194.0,0.000411,120]
[421975887,1778396661000,-150.0,0.00041096,120]
[421975886,1778396661000,-150.0,0.00041096,120]
[421975893,1778396661000,-363.60746394,0.000411,120]
[421975910,1778396662000,-848.41741587,0.000411,120]
[421975916,1778396662000,-848.41741587,0.000411,120]
[421975914,1778396662000,-848.41741587,0.000411,120]
[421975913,1778396662000,-848.41741587,0.000411,120]
[421975912,1778396662000,-848.41741587,0.000411,120]
[421975911,1778396662000,-848.41741587,0.000411,120]
[421975909,1778396662000,-848.41741587,0.000411,120]
[421975917,1778396662000,-848.41741587,0.000411,120]
[421975907,1778396662000,-363.60746394,0.000411,120]
[421975905,1778396662000,-363.60746394,0.000411,120]
[421975906,1778396662000,-363.60746394,0.000411,120]
[421975904,1778396662000,-363.60746394,0.000411,120]
[421975901,1778396662000,-363.60746394,0.000411,120]
[421975903,1778396662000,-363.60746394,0.000411,120]
[421975902,1778396662000,-363.60746394,0.000411,120]
[421975908,1778396662000,-363.6,0.000411,120]
[421975915,1778396662000,-848.41741587,0.000411,120]
[421975921,1778396662000,-848.41741587,0.000411,120]
[421975920,1778396662000,-848.41741587,0.000411,120]
[421975933,1778396662000,-2400.0,0.00041187,60]
[421975934,1778396662000,-468.37138039,0.0004119,120]
[421975929,1778396662000,-185.01,0.00041133,120]
[421975932,1778396662000,-2400.0,0.00041187,30]
[421975931,1778396662000,-1300.0,0.00041177,120]
[421975930,1778396662000,-600.0,0.00041177,120]
[421975928,1778396662000,-848.41,0.000411,120]
[421975918,1778396662000,-848.41741587,0.000411,120]
[421975926,1778396662000,-848.41741587,0.000411,120]
[421975924,1778396662000,-848.41741587,0.000411,120]
[421975923,1778396662000,-848.41741587,0.000411,120]
[421975925,1778396662000,-848.41741587,0.000411,120]
[421975922,1778396662000,-848.41741587,0.000411,120]
[421975919,1778396662000,-848.41741587,0.000411,120]
[421975935,1778396662000,-252.70543366,0.000412,30]
[421975927,1778396662000,-848.41741587,0.000411,120]
[421975950,1778396663000,-500.0,0.00041436,30]
[421975947,1778396663000,-500.0,0.00041436,120]
[421975948,1778396663000,-732.0,0.00041436,120]
[421975944,1778396663000,-500.0,0.00041436,120]
[421975946,1778396663000,-632.4,0.00041436,120]
[421975943,1778396663000,-500.0,0.00041436,120]
[421975945,1778396663000,-500.0,0.00041436,120]
[421975938,1778396663000,-155.0,0.000413,120]
[421975942,1778396663000,-160.0,0.000414,68]
[421975941,1778396663000,-597659.68939333,0.000414,30]
[421975936,1778396663000,-157.49,0.0004125,120]
[421975939,1778396663000,-1561.0,0.0004137,120]
[421975937,1778396663000,-4974.2,0.0004125,120]
[421975949,1778396663000,-500.0,0.00041436,30]
[421975940,1778396663000,-1000.0,0.000414,120]
[421975951,1778396663000,-500.0,0.00041436,30]
[421975953,1778396663000,-218.5425515,0.00041473,120]
[421975954,1778396663000,-153.93,0.0004149,120]
[421975968,1778396663000,-1000.0,0.00041644,120]
[421975966,1778396663000,-979.52995655,0.00041643,30]
[421975967,1778396663000,-1561.0,0.00041644,120]
[421975963,1778396663000,-546637.80464376,0.000415,30]
[421975964,1778396663000,-1000.0,0.000416,120]
[421975960,1778396663000,-3953.30556555,0.000415,120]
[421975961,1778396663000,-100000.0,0.000415,120]
[421975965,1778396663000,-3477.48,0.000416,120]
[421975959,1778396663000,-183.60678246,0.000415,60]
[421975956,1778396663000,-4050.2,0.000415,120]
[421975957,1778396663000,-1000.0,0.000415,120]
[421975958,1778396663000,-1000.0,0.000415,120]
[421975955,1778396663000,-1063.91,0.000415,120]
[421975952,1778396663000,-557.886,0.00041436,30]
[421975962,1778396663000,-49999.99999999,0.000415,120]
[421975979,1778396664000,-3000.0,0.0004169,120]
[421975982,1778396664000,-3000.0,0.0004169,120]
[421975980,1778396664000,-3000.0,0.0004169,120]
[421975981,1778396664000,-3000.0,0.0004169,120]
[421975978,1778396664000,-3000.0,0.0004169,120]
[421975977,1778396664000,-3000.0,0.0004169,120]
[421975975,1778396664000,-355.73805248,0.0004169,30]
[421975969,1778396664000,-1000.0,0.00041644,120]
[421975974,1778396664000,-42777.74718408,0.00041681,50]
[421975973,1778396664000,-2000000.0,0.0004168,120]
[421975971,1778396664000,-655.0,0.00041645,30]
[421975972,1778396664000,-6439.07,0.00041679,120]
[421975970,1778396664000,-1895.56889242,0.00041644,120]
[421975983,1778396664000,-3000.0,0.0004169,120]
[421975976,1778396664000,-3000.0,0.0004169,120]
[421975984,1778396664000,-3000.0,0.0004169,120]
[421976001,1778396664000,-3000.0,0.0004169,120]
[421975986,1778396664000,-3000.0,0.0004169,120]
[421975985,1778396664000,-3000.0,0.0004169,120]
[421976002,1778396664000,-3000.0,0.0004169,120]
[421976000,1778396664000,-3000.0,0.0004169,120]
[421975998,1778396664000,-3000.0,0.0004169,120]
[421975999,1778396664000,-3000.0,0.0004169,120]
[421975996,1778396664000,-3000.0,0.0004169,120]
[421975995,1778396664000,-3000.0,0.0004169,120]
[421975997,1778396664000,-3000.0,0.0004169,120]
[421975993,1778396664000,-3000.0,0.0004169,120]
[421975992,1778396664000,-3000.0,0.0004169,120]
[421975990,1778396664000,-3000.0,0.0004169,120]
[421975991,1778396664000,-3000.0,0.0004169,120]
[421975988,1778396664000,-3000.0,0.0004169,120]
[421975989,1778396664000,-3000.0,0.0004169,120]
[421975987,1778396664000,-3000.0,0.0004169,120]
[421975994,1778396664000,-3000.0,0.0004169,120]
[421976012,1778396665000,-3000.0,0.0004169,120]
[421976015,1778396665000,-3000.0,0.0004169,120]
[421976014,1778396665000,-3000.0,0.0004169,120]
[421976017,1778396665000,-3000.0,0.0004169,120]
[421976016,1778396665000,-3000.0,0.0004169,120]
[421976013,1778396665000,-3000.0,0.0004169,120]
[421976011,1778396665000,-3000.0,0.0004169,120]
[421976003,1778396665000,-3000.0,0.0004169,120]
[421976010,1778396665000,-3000.0,0.0004169,120]
[421976009,1778396665000,-3000.0,0.0004169,120]
[421976007,1778396665000,-3000.0,0.0004169,120]
[421976008,1778396665000,-3000.0,0.0004169,120]
[421976005,1778396665000,-3000.0,0.0004169,120]
[421976006,1778396665000,-3000.0,0.0004169,120]
[421976004,1778396665000,-3000.0,0.0004169,120]
[421976019,1778396665000,-3000.0,0.0004169,120]
[421976018,1778396665000,-3000.0,0.0004169,120]
[421976030,1778396665000,-1500.0,0.00041691,30]
[421976021,1778396665000,-3000.0,0.0004169,120]
[421976037,1778396665000,-152.0,0.00041696,120]
[421976036,1778396665000,-2000.0,0.00041695,120]
[421976035,1778396665000,-1143.5,0.00041694,120]
[421976033,1778396665000,-1500.0,0.00041691,30]
[421976034,1778396665000,-2400.33794972,0.00041691,30]
[421976031,1778396665000,-1500.0,0.00041691,30]
[421976032,1778396665000,-1500.0,0.00041691,30]
[421976020,1778396665000,-3000.0,0.0004169,120]
[421976029,1778396665000,-1212.47428584,0.00041691,30]
[421976027,1778396665000,-174.85229281,0.00041691,30]
[421976025,1778396665000,-3000.0,0.0004169,120]
[421976026,1778396665000,-647.599904,0.0004169,120]
[421976023,1778396665000,-3135.25411682,0.0004169,120]
[421976024,1778396665000,-265.13597358,0.0004169,120]
[421976022,1778396665000,-3000.0,0.0004169,120]
[421976028,1778396665000,-1500.0,0.00041691,30]
[421976050,1778396666000,-2635.0,0.00041747,42]
[421976051,1778396666000,-160.63,0.0004175,120]
[421976052,1778396666000,-5073.68,0.0004175,120]
[421976046,1778396666000,-158.0,0.0004171,120]
[421976048,1778396666000,-1300.0,0.00041725,120]
[421976047,1778396666000,-185.3894901,0.00041716,30]
[421976045,1778396666000,-158.0,0.0004171,120]
[421976040,1778396666000,-9646.0,0.00041697,30]
[421976044,1778396666000,-15731.7204,0.0004171,120]
[421976043,1778396666000,-255.7,0.000417,31]
[421976038,1778396666000,-378.0,0.00041696,120]
[421976041,1778396666000,-1000.0,0.000417,120]
[421976039,1778396666000,-917.0,0.00041696,120]
[421976049,1778396666000,-600.0,0.00041725,120]
[421976042,1778396666000,-194.0,0.000417,120]
[421976055,1778396666000,-225.29487712,0.00041757,120]
[421976053,1778396666000,-50000.0,0.00041753,65]
[421976054,1778396666000,-152.13386889,0.00041757,120]
[421976070,1778396666000,-179.02219684,0.0004179,120]
[421976068,1778396666000,-304.39705839,0.0004179,120]
[421976069,1778396666000,-216.53393623,0.0004179,120]
[421976067,1778396666000,-472.46259,0.0004179,120]
[421976065,1778396666000,-41354.0,0.0004179,30]
[421976066,1778396666000,-255.0384141,0.0004179,120]
[421976063,1778396666000,-308.12238777,0.00041781,120]
[421976071,1778396666000,-375.0,0.00041791,120]
[421976062,1778396666000,-36015.35,0.00041778,60]
[421976060,1778396666000,-193.99415697,0.0004177,120]
[421976061,1778396666000,-203.44005567,0.0004177,120]
[421976058,1778396666000,-211.6686259,0.00041757,120]
[421976056,1778396666000,-392.30247129,0.00041757,120]
[421976059,1778396666000,-241.29213992,0.00041757,120]
[421976057,1778396666000,-435.49217466,0.00041757,120]
[421976064,1778396666000,-247.417894,0.00041789,67]
[421976086,1778396667000,-1092.93390361,0.00041827,120]
[421976084,1778396667000,-1092.93390361,0.00041827,120]
[421976085,1778396667000,-1092.93390361,0.00041827,120]
[421976082,1778396667000,-1092.93390361,0.00041827,120]
[421976083,1778396667000,-1092.93390361,0.00041827,120]
[421976080,1778396667000,-8076.02110906,0.0004182,120]
[421976081,1778396667000,-60000.000001,0.00041825,120]
[421976075,1778396667000,-1519.7,0.000418,120]
[421976078,1778396667000,-900000.0,0.000418,120]
[421976077,1778396667000,-1000000.0,0.000418,120]
[421976076,1778396667000,-1000000.0,0.000418,120]
[421976073,1778396667000,-1000.0,0.000418,120]
[421976074,1778396667000,-97732.94101521,0.000418,120]
[421976072,1778396667000,-2349.96130727,0.000418,30]
[421976089,1778396667000,-1092.93390361,0.00041827,120]
[421976079,1778396667000,-160.0,0.000418,70]
[421976087,1778396667000,-1092.93390361,0.00041827,120]
[421976104,1778396667000,-250.0,0.00041869,111]
[421976090,1778396667000,-1092.93390361,0.00041827,120]
[421976088,1778396667000,-1092.93390361,0.00041827,120]
[421976105,1778396667000,-250.0,0.00041875,111]
[421976101,1778396667000,-791.0,0.00041832,60]
[421976102,1778396667000,-791.0,0.00041832,60]
[421976100,1778396667000,-791.0,0.00041832,60]
[421976099,1778396667000,-791.0,0.00041832,60]
[421976097,1778396667000,-791.0,0.00041832,60]
[421976103,1778396667000,-250.0,0.00041863,110]
[421976096,1778396667000,-791.0,0.00041832,60]
[421976095,1778396667000,-791.0,0.00041832,60]
[421976094,1778396667000,-1092.93390361,0.00041827,120]
[421976093,1778396667000,-1092.93390361,0.00041827,120]
[421976092,1778396667000,-1092.93390361,0.00041827,120]
[421976091,1778396667000,-1092.93390361,0.00041827,120]
[421976098,1778396667000,-791.0,0.00041832,60]
[421976106,1778396667000,-2005.9555727,0.00041876,30]
[421976117,1778396668000,-162.15870515,0.000419,120]
[421976121,1778396668000,-603.1436955,0.000419,30]
[421976120,1778396668000,-7500.0,0.000419,90]
[421976119,1778396668000,-250793.9419295,0.000419,30]
[421976118,1778396668000,-365.11986713,0.000419,120]
[421976115,1778396668000,-1865.36488657,0.00041899,30]
[421976116,1778396668000,-1000.0,0.000419,120]
[421976107,1778396668000,-205.0,0.00041879,30]
[421976113,1778396668000,-250.0,0.00041892,112]
[421976112,1778396668000,-153.93,0.0004189,120]
[421976111,1778396668000,-1934.38338737,0.00041888,30]
[421976110,1778396668000,-250.0,0.00041887,112]
[421976108,1778396668000,-2683.86110509,0.0004188,120]
[421976109,1778396668000,-250.0,0.00041881,112]
[421976123,1778396668000,-214.43583534,0.000419,120]
[421976114,1778396668000,-250.0,0.00041898,113]
[421976122,1778396668000,-475.33351116,0.000419,31]
[421976133,1778396668000,-250.0,0.00041937,116]
[421976125,1778396668000,-250.0,0.00041907,114]
[421976140,1778396668000,-250.0,0.00041957,118]
[421976141,1778396668000,-250.0,0.0004196,119]
[421976137,1778396668000,-250.0,0.00041951,118]
[421976139,1778396668000,-1798.80895522,0.00041954,30]
[421976138,1778396668000,-250.0,0.00041954,118]
[421976136,1778396668000,-250.0,0.00041947,117]
[421976135,1778396668000,-250.0,0.00041944,117]
[421976124,1778396668000,-250.0,0.00041903,113]
[421976131,1778396668000,-250.0,0.00041929,116]
[421976132,1778396668000,-250.0,0.00041933,116]
[421976130,1778396668000,-250.0,0.00041925,115]
[421976129,1778396668000,-250.0,0.00041921,115]